[Event "Late-Titled-Tuesday-Blitz-April-16-2024"]
[Site "Chess.com"]
[Date "2024.04.16"]
[Round "8"]
[White "mishanick"]
[Black "eljanov"]
[Result "1-0"]
[WhiteElo "3053"]
[BlackElo "2896"]
[TimeControl "180+1"]
[EndTime "15:25:18 PDT"]
[Termination "mishanick won by checkmate"]

1. d4 {[%clk 0:03:00.9]} 1... Nf6 {[%clk 0:02:59.7]} 2. c4 {[%clk 0:03:01.6]}
2... e6 {[%clk 0:02:59.5]} 3. Nc3 {[%clk 0:03:02.3]} 3... Bb4 {[%clk 0:02:59.1]}
4. e3 {[%clk 0:03:02.8]} 4... O-O {[%clk 0:02:58.2]} 5. Bd3 {[%clk 0:03:03.5]}
5... d5 {[%clk 0:02:58]} 6. a3 {[%clk 0:03:04.1]} 6... Bxc3+ {[%clk 0:02:56.7]}
7. bxc3 {[%clk 0:03:05]} 7... dxc4 {[%clk 0:02:56.1]} 8. Bxc4 {[%clk 0:03:05.9]}
8... c5 {[%clk 0:02:56.6]} 9. Nf3 {[%clk 0:03:06.4]} 9... Qc7 {[%clk 0:02:55.9]}
10. Bb3 {[%clk 0:03:06.6]} 10... Nc6 {[%clk 0:02:46.4]} 11. O-O {[%clk
0:03:05.8]} 11... Rd8 {[%clk 0:02:40]} 12. Re1 {[%clk 0:02:56.9]} 12... e5
{[%clk 0:02:18.4]} 13. Ng5 {[%clk 0:02:56]} 13... Rd7 {[%clk 0:02:15.8]} 14. d5
{[%clk 0:02:39.7]} 14... Na5 {[%clk 0:01:35.3]} 15. e4 {[%clk 0:02:33.1]} 15...
Nxb3 {[%clk 0:01:23.9]} 16. Qxb3 {[%clk 0:02:34]} 16... Ne8 {[%clk 0:01:15.1]}
17. c4 {[%clk 0:02:32.9]} 17... Nd6 {[%clk 0:01:13.7]} 18. f4 {[%clk 0:02:31.5]}
18... h6 {[%clk 0:00:50.2]} 19. Nf3 {[%clk 0:02:24.4]} 19... exf4 {[%clk
0:00:46.8]} 20. Bxf4 {[%clk 0:02:25.3]} 20... Qd8 {[%clk 0:00:38.4]} 21. Rad1
{[%clk 0:01:51.5]} 21... b6 {[%clk 0:00:38.4]} 22. e5 {[%clk 0:01:39.9]} 22...
Nf5 {[%clk 0:00:37.8]} 23. Qd3 {[%clk 0:01:40.5]} 23... Ne7 {[%clk 0:00:27.6]}
24. Bg3 {[%clk 0:01:06.6]} 24... Rb7 {[%clk 0:00:25.3]} 25. Bh4 {[%clk
0:00:57.2]} 25... Qf8 {[%clk 0:00:22.3]} 26. h3 {[%clk 0:00:43]} 26... Ng6
{[%clk 0:00:18.8]} 27. Bg3 {[%clk 0:00:40.2]} 27... Qe8 {[%clk 0:00:17.6]} 28.
Qe4 {[%clk 0:00:37.4]} 28... b5 {[%clk 0:00:15.9]} 29. e6 {[%clk 0:00:33.3]}
29... fxe6 {[%clk 0:00:16]} 30. dxe6 {[%clk 0:00:34]} 30... bxc4 {[%clk
0:00:14.2]} 31. Qxc4 {[%clk 0:00:32.6]} 31... Kh7 {[%clk 0:00:10.6]} 32. Qc2
{[%clk 0:00:27.1]} 32... Bxe6 {[%clk 0:00:09.4]} 33. Rxe6 {[%clk 0:00:15.7]}
33... Qxe6 {[%clk 0:00:08.8]} 34. Rd6 {[%clk 0:00:16.4]} 34... Qe8 {[%clk
0:00:04]} 35. Ne5 {[%clk 0:00:16.7]} 35... Rb6 {[%clk 0:00:03.4]} 36. Nxg6
{[%clk 0:00:15]} 36... Rxd6 {[%clk 0:00:02.2]} 37. Nf8+ {[%clk 0:00:15.5]} 37...
Kg8 {[%clk 0:00:01.8]} 38. Bxd6 {[%clk 0:00:10.1]} 38... Rd8 {[%clk 0:00:01.5]}
39. Qh7+ {[%clk 0:00:06.9]} 39... Kf7 {[%clk 0:00:01.9]} 40. Qf5+ {[%clk
0:00:06.9]} 40... Kg8 {[%clk 0:00:02.1]} 41. Bxc5 {[%clk 0:00:05.3]} 41... Qf7
{[%clk 0:00:02.2]} 42. Qh7# {[%clk 0:00:04.6]} 1-0

[Event "Late-Titled-Tuesday-Blitz-April-16-2024"]
[Site "Chess.com"]
[Date "2024.04.16"]
[Round "8"]
[White "szachmistrz2500"]
[Black "Kildepiotr"]
[Result "1/2-1/2"]
[WhiteElo "2460"]
[BlackElo "2697"]
[TimeControl "180+1"]
[EndTime "15:25:19 PDT"]
[Termination "Game drawn - insufficient material"]

1. d4 {[%clk 0:03:00.9]} 1... Nf6 {[%clk 0:02:51]} 2. c4 {[%clk 0:02:59.5]} 2...
e6 {[%clk 0:02:51.1]} 3. Nf3 {[%clk 0:02:59]} 3... b6 {[%clk 0:02:51]} 4. a3
{[%clk 0:02:58.5]} 4... Bb7 {[%clk 0:02:51.5]} 5. Nc3 {[%clk 0:02:58.3]} 5... d5
{[%clk 0:02:51.5]} 6. Bg5 {[%clk 0:02:56.8]} 6... Nbd7 {[%clk 0:02:48.7]} 7. e3
{[%clk 0:02:53.1]} 7... h6 {[%clk 0:02:48.3]} 8. Bh4 {[%clk 0:02:51.2]} 8... Be7
{[%clk 0:02:47.9]} 9. Bd3 {[%clk 0:02:43.8]} 9... O-O {[%clk 0:02:47.6]} 10. O-O
{[%clk 0:02:43.6]} 10... c5 {[%clk 0:02:47.5]} 11. Qe2 {[%clk 0:02:40.6]} 11...
cxd4 {[%clk 0:02:46.7]} 12. Nxd4 {[%clk 0:02:34.6]} 12... Ne5 {[%clk 0:02:43.7]}
13. Bxf6 {[%clk 0:02:29.7]} 13... Bxf6 {[%clk 0:02:42.9]} 14. cxd5 {[%clk
0:02:29.9]} 14... Nxd3 {[%clk 0:02:17.3]} 15. Qxd3 {[%clk 0:02:29]} 15... Bxd5
{[%clk 0:02:17.1]} 16. Nxd5 {[%clk 0:02:23.3]} 16... Qxd5 {[%clk 0:02:18]} 17.
Rfd1 {[%clk 0:02:23.2]} 17... Rac8 {[%clk 0:02:15.6]} 18. Qa6 {[%clk 0:02:19.1]}
18... Qa8 {[%clk 0:02:06.8]} 19. Rd2 {[%clk 0:02:16.3]} 19... Rfd8 {[%clk
0:01:57.4]} 20. Rad1 {[%clk 0:02:15.5]} 20... Rc7 {[%clk 0:01:51.5]} 21. b4
{[%clk 0:02:09.2]} 21... Rcd7 {[%clk 0:01:47.2]} 22. Nf3 {[%clk 0:02:08]} 22...
Rxd2 {[%clk 0:01:30.6]} 23. Rxd2 {[%clk 0:02:07.1]} 23... Rxd2 {[%clk
0:01:30.7]} 24. Nxd2 {[%clk 0:02:08]} 24... Qd5 {[%clk 0:01:30.6]} 25. Nf1
{[%clk 0:02:06.6]} 25... Qd7 {[%clk 0:01:28.1]} 26. g3 {[%clk 0:02:04.2]} 26...
b5 {[%clk 0:01:25.8]} 27. h4 {[%clk 0:01:56.9]} 27... Bd8 {[%clk 0:01:25]} 28.
Nh2 {[%clk 0:01:50]} 28... Bb6 {[%clk 0:01:22.1]} 29. Nf3 {[%clk 0:01:49.8]}
29... Qd5 {[%clk 0:01:15.8]} 30. Nd4 {[%clk 0:01:48.2]} 30... Bxd4 {[%clk
0:01:04.3]} 31. exd4 {[%clk 0:01:48.3]} 31... Qxd4 {[%clk 0:00:59.4]} 32. Qxb5
{[%clk 0:01:48.1]} 32... Qa1+ {[%clk 0:00:53]} 33. Kg2 {[%clk 0:01:46.4]} 33...
Qxa3 {[%clk 0:00:53.9]} 34. Qe8+ {[%clk 0:01:46.5]} 34... Kh7 {[%clk 0:00:54.6]}
35. Qxf7 {[%clk 0:01:46.8]} 35... Qxb4 {[%clk 0:00:54.9]} 36. Qxe6 {[%clk
0:01:46.1]} 36... Qb1 {[%clk 0:00:53.9]} 37. Qa6 {[%clk 0:01:40.8]} 37... Qe4+
{[%clk 0:00:52.9]} 38. Kg1 {[%clk 0:01:38.4]} 38... Qd4 {[%clk 0:00:52.8]} 39.
h5 {[%clk 0:01:35.1]} 39... Qb6 {[%clk 0:00:46.3]} 40. Qd3+ {[%clk 0:01:22.3]}
40... Kg8 {[%clk 0:00:45.9]} 41. Qd5+ {[%clk 0:01:21.6]} 41... Kf8 {[%clk
0:00:46]} 42. Qf5+ {[%clk 0:01:10.7]} 42... Qf6 {[%clk 0:00:45.4]} 43. Qc8+
{[%clk 0:01:00.2]} 43... Kf7 {[%clk 0:00:43.8]} 44. Qc4+ {[%clk 0:00:55.7]}
44... Qe6 {[%clk 0:00:39.8]} 45. Qf4+ {[%clk 0:00:54.7]} 45... Ke7 {[%clk
0:00:36.5]} 46. Qd4 {[%clk 0:00:50.5]} 46... Qf6 {[%clk 0:00:11.5]} 47. Qxa7+
{[%clk 0:00:48.9]} 47... Kf8 {[%clk 0:00:11.9]} 48. Qb8+ {[%clk 0:00:43.6]}
48... Kf7 {[%clk 0:00:12.2]} 49. Qf4 {[%clk 0:00:39.1]} 49... Qxf4 {[%clk
0:00:12.1]} 50. gxf4 {[%clk 0:00:39.4]} 50... g6 {[%clk 0:00:09.9]} 51. hxg6+
{[%clk 0:00:36]} 51... Kxg6 {[%clk 0:00:10.8]} 52. Kg2 {[%clk 0:00:36.6]} 52...
Kf5 {[%clk 0:00:11.1]} 53. Kg3 {[%clk 0:00:35.6]} 53... h5 {[%clk 0:00:11.3]}
54. Kh4 {[%clk 0:00:20.4]} 54... Kxf4 {[%clk 0:00:11.4]} 55. Kxh5 {[%clk
0:00:20.8]} 55... Kf3 {[%clk 0:00:12.3]} 56. Kg5 {[%clk 0:00:20]} 56... Kxf2
{[%clk 0:00:13.2]} 1/2-1/2

[Event "Late-Titled-Tuesday-Blitz-April-16-2024"]
[Site "Chess.com"]
[Date "2024.04.16"]
[Round "8"]
[White "ATM622"]
[Black "GlavkonVVS"]
[Result "0-1"]
[WhiteElo "2452"]
[BlackElo "2614"]
[TimeControl "180+1"]
[EndTime "15:25:20 PDT"]
[Termination "GlavkonVVS won by resignation"]

1. d4 {[%clk 0:03:00.9]} 1... Nf6 {[%clk 0:03:00.3]} 2. c3 {[%clk 0:03:00.8]}
2... g6 {[%clk 0:02:59.7]} 3. g3 {[%clk 0:03:01.1]} 3... Bg7 {[%clk 0:03:00.1]}
4. Bg2 {[%clk 0:03:01.7]} 4... O-O {[%clk 0:03:00.7]} 5. Nf3 {[%clk 0:03:01.9]}
5... d6 {[%clk 0:03:01.3]} 6. O-O {[%clk 0:03:01.8]} 6... Nbd7 {[%clk 0:03:02]}
7. Nbd2 {[%clk 0:02:59.1]} 7... c5 {[%clk 0:03:02.1]} 8. e4 {[%clk 0:02:58.5]}
8... Rb8 {[%clk 0:02:59.1]} 9. a4 {[%clk 0:02:57.7]} 9... a6 {[%clk 0:02:58.6]}
10. Re1 {[%clk 0:02:53.9]} 10... cxd4 {[%clk 0:02:55.7]} 11. cxd4 {[%clk
0:02:53]} 11... e5 {[%clk 0:02:56.3]} 12. Nc4 {[%clk 0:02:47.1]} 12... Qc7
{[%clk 0:02:54.7]} 13. b3 {[%clk 0:02:46.7]} 13... b5 {[%clk 0:02:54.4]} 14.
axb5 {[%clk 0:02:39.7]} 14... axb5 {[%clk 0:02:54.6]} 15. dxe5 {[%clk 0:02:21]}
15... bxc4 {[%clk 0:02:43.6]} 16. exf6 {[%clk 0:02:21]} 16... Bxf6 {[%clk
0:02:43.9]} 17. Bh6 {[%clk 0:01:51.5]} 17... cxb3 {[%clk 0:02:28.6]} 18. Rb1
{[%clk 0:01:45.2]} 18... Nc5 {[%clk 0:02:24.2]} 19. Bxf8 {[%clk 0:01:44]} 19...
Kxf8 {[%clk 0:02:23.4]} 20. Qd2 {[%clk 0:01:39.2]} 20... Be6 {[%clk 0:02:20.9]}
21. Rec1 {[%clk 0:01:37.2]} 21... b2 {[%clk 0:02:11.3]} 22. Rc2 {[%clk
0:01:29.6]} 22... Qb6 {[%clk 0:01:46.8]} 23. e5 {[%clk 0:01:24.2]} 23... Nb3
{[%clk 0:01:20.5]} 24. Rcxb2 {[%clk 0:01:02.3]} 24... Nxd2 {[%clk 0:01:18.9]}
25. Rxb6 {[%clk 0:01:02.3]} 25... Nxf3+ {[%clk 0:01:17.3]} 26. Bxf3 {[%clk
0:01:02.6]} 26... Rxb6 {[%clk 0:01:17.7]} 27. Rxb6 {[%clk 0:01:02.8]} 27... Bxe5
{[%clk 0:01:18.2]} 28. Rb5 {[%clk 0:00:50.1]} 28... Bd4 {[%clk 0:01:16.7]} 29.
Bd5 {[%clk 0:00:49]} 29... Bc5 {[%clk 0:01:10.9]} 30. Bxe6 {[%clk 0:00:42.8]}
30... fxe6 {[%clk 0:01:11.1]} 31. Kf1 {[%clk 0:00:43.2]} 31... h5 {[%clk
0:01:02.9]} 32. Rb7 {[%clk 0:00:43.2]} 32... d5 {[%clk 0:00:57.6]} 33. Ke2
{[%clk 0:00:36.4]} 33... Be7 {[%clk 0:00:53.7]} 34. Ke3 {[%clk 0:00:29.7]} 34...
Bf6 {[%clk 0:00:53.9]} 35. f4 {[%clk 0:00:25.5]} 35... Kg8 {[%clk 0:00:48.5]}
36. Kd3 {[%clk 0:00:21.5]} 36... Kf8 {[%clk 0:00:43.4]} 37. Kc2 {[%clk
0:00:20.7]} 37... Bd4 {[%clk 0:00:40.2]} 38. Kd3 {[%clk 0:00:18.8]} 38... Bg1
{[%clk 0:00:40.2]} 39. Rb2 {[%clk 0:00:17.9]} 39... Kf7 {[%clk 0:00:38.2]} 40.
Rg2 {[%clk 0:00:17.3]} 40... Bc5 {[%clk 0:00:37.5]} 41. h3 {[%clk 0:00:15.8]}
41... Bd6 {[%clk 0:00:35.4]} 42. Rf2 {[%clk 0:00:12.9]} 42... Kf6 {[%clk
0:00:34.6]} 43. g4 {[%clk 0:00:13.2]} 43... hxg4 {[%clk 0:00:34.5]} 44. hxg4
{[%clk 0:00:14.1]} 44... g5 {[%clk 0:00:33.9]} 45. f5 {[%clk 0:00:03.5]} 45...
e5 {[%clk 0:00:34]} 46. Rf1 {[%clk 0:00:03.6]} 46... Bc5 {[%clk 0:00:32.7]} 47.
Rh1 {[%clk 0:00:03.7]} 47... e4+ {[%clk 0:00:32.8]} 48. Ke2 {[%clk 0:00:03.8]}
48... d4 {[%clk 0:00:32.4]} 49. Rh6+ {[%clk 0:00:04.3]} 49... Ke5 {[%clk
0:00:32.7]} 50. Re6+ {[%clk 0:00:04.6]} 50... Kf4 {[%clk 0:00:33.1]} 51. f6
{[%clk 0:00:05.1]} 51... d3+ {[%clk 0:00:33.6]} 52. Kd2 {[%clk 0:00:05.5]} 52...
Bb4+ {[%clk 0:00:33.8]} 53. Kd1 {[%clk 0:00:05]} 53... e3 {[%clk 0:00:34.2]} 54.
f7 {[%clk 0:00:04.2]} 54... e2+ {[%clk 0:00:34.2]} 55. Kc1 {[%clk 0:00:03]}
55... e1=Q+ {[%clk 0:00:32.7]} 56. Rxe1 {[%clk 0:00:02.8]} 56... d2+ {[%clk
0:00:33.3]} 0-1

[Event "Late-Titled-Tuesday-Blitz-April-16-2024"]
[Site "Chess.com"]
[Date "2024.04.16"]
[Round "8"]
[White "Abund"]
[Black "Nf3c5"]
[Result "1-0"]
[WhiteElo "2798"]
[BlackElo "2649"]
[TimeControl "180+1"]
[EndTime "15:25:24 PDT"]
[Termination "Abund won by resignation"]

1. e4 {[%clk 0:03:00.9]} 1... e5 {[%clk 0:02:58.2]} 2. Nf3 {[%clk 0:03:01.3]}
2... Nc6 {[%clk 0:02:58.6]} 3. Bb5 {[%clk 0:03:01.7]} 3... Nge7 {[%clk
0:02:57.1]} 4. O-O {[%clk 0:03:01.5]} 4... Ng6 {[%clk 0:02:53.4]} 5. d4 {[%clk
0:03:01.4]} 5... exd4 {[%clk 0:02:52]} 6. Nxd4 {[%clk 0:03:02.3]} 6... Bc5
{[%clk 0:02:50.3]} 7. Nf5 {[%clk 0:03:02.3]} 7... O-O {[%clk 0:02:44.6]} 8. Be3
{[%clk 0:03:02.6]} 8... Bb6 {[%clk 0:02:34.7]} 9. Nc3 {[%clk 0:03:01.8]} 9... d6
{[%clk 0:02:32.9]} 10. Nd5 {[%clk 0:02:58.3]} 10... Bxf5 {[%clk 0:02:18.8]} 11.
exf5 {[%clk 0:02:50.5]} 11... Nge7 {[%clk 0:02:12.1]} 12. Bxb6 {[%clk
0:02:05.6]} 12... axb6 {[%clk 0:01:58]} 13. f6 {[%clk 0:02:02.7]} 13... Nxd5
{[%clk 0:01:54.9]} 14. fxg7 {[%clk 0:02:01.9]} 14... Kxg7 {[%clk 0:01:54]} 15.
Qxd5 {[%clk 0:02:01.5]} 15... Ne7 {[%clk 0:01:45.1]} 16. Qg5+ {[%clk 0:01:53.2]}
16... Ng6 {[%clk 0:01:44.9]} 17. Qg3 {[%clk 0:01:48.7]} 17... Ra5 {[%clk
0:01:38.9]} 18. a4 {[%clk 0:01:48.5]} 18... c6 {[%clk 0:01:38.7]} 19. b4 {[%clk
0:01:43.6]} 19... Ra8 {[%clk 0:01:37]} 20. Bd3 {[%clk 0:01:43.8]} 20... d5
{[%clk 0:01:31.4]} 21. Qe3 {[%clk 0:01:39.1]} 21... Re8 {[%clk 0:01:25.9]} 22.
Qd4+ {[%clk 0:01:39.1]} 22... Qf6 {[%clk 0:01:13.6]} 23. Qxb6 {[%clk 0:01:29]}
23... Re7 {[%clk 0:01:01.4]} 24. a5 {[%clk 0:01:19.2]} 24... Nf4 {[%clk
0:00:59.4]} 25. Rae1 {[%clk 0:00:54.7]} 25... Rae8 {[%clk 0:00:53.3]} 26. Re3
{[%clk 0:00:51.6]} 26... d4 {[%clk 0:00:41]} 27. Rg3+ {[%clk 0:00:38.9]} 27...
Kh8 {[%clk 0:00:40.4]} 28. h3 {[%clk 0:00:38.7]} 28... Rg8 {[%clk 0:00:28.4]}
29. Kh2 {[%clk 0:00:30.4]} 29... Rg5 {[%clk 0:00:24.5]} 30. Rxg5 {[%clk
0:00:21.2]} 30... Qxg5 {[%clk 0:00:24.5]} 31. Qxd4+ {[%clk 0:00:21.9]} 31... Kg8
{[%clk 0:00:24.9]} 32. Qd8+ {[%clk 0:00:16.5]} 32... Kg7 {[%clk 0:00:24.5]} 33.
Qd4+ {[%clk 0:00:17.3]} 33... f6 {[%clk 0:00:23.5]} 34. g3 {[%clk 0:00:16.9]}
34... Nd5 {[%clk 0:00:16.8]} 35. h4 {[%clk 0:00:13.9]} 35... Qe5 {[%clk
0:00:16]} 36. Qxe5 {[%clk 0:00:12.8]} 36... Rxe5 {[%clk 0:00:14.1]} 37. Rb1
{[%clk 0:00:13.4]} 37... Nc3 {[%clk 0:00:14.1]} 38. Rb3 {[%clk 0:00:13.4]} 38...
Nd5 {[%clk 0:00:11.7]} 39. Kg2 {[%clk 0:00:12.9]} 39... f5 {[%clk 0:00:11.7]}
40. b5 {[%clk 0:00:13.1]} 40... cxb5 {[%clk 0:00:10.4]} 41. Rxb5 {[%clk
0:00:12.7]} 41... Kf6 {[%clk 0:00:09.5]} 42. Rxb7 {[%clk 0:00:12]} 42... f4
{[%clk 0:00:10]} 43. Rb5 {[%clk 0:00:11.4]} 43... fxg3 {[%clk 0:00:08.8]} 44.
Kxg3 {[%clk 0:00:11.7]} 44... Ke6 {[%clk 0:00:05]} 45. Bc4 {[%clk 0:00:10.6]}
45... Kd6 {[%clk 0:00:04.8]} 46. Rxd5+ {[%clk 0:00:10.8]} 46... Rxd5 {[%clk
0:00:05]} 47. Bxd5 {[%clk 0:00:11.7]} 47... Kxd5 {[%clk 0:00:05.8]} 48. f4
{[%clk 0:00:12.4]} 1-0

[Event "Late-Titled-Tuesday-Blitz-April-16-2024"]
[Site "Chess.com"]
[Date "2024.04.16"]
[Round "8"]
[White "Slovineanu"]
[Black "Chempiblinka"]
[Result "0-1"]
[WhiteElo "2476"]
[BlackElo "2381"]
[TimeControl "180+1"]
[EndTime "15:25:28 PDT"]
[Termination "Chempiblinka won on time"]

1. d4 {[%clk 0:02:59.2]} 1... d5 {[%clk 0:02:57.6]} 2. Nf3 {[%clk 0:02:59.4]}
2... Nf6 {[%clk 0:02:56.4]} 3. c4 {[%clk 0:02:59.7]} 3... e6 {[%clk 0:02:56.3]}
4. e3 {[%clk 0:03:00.3]} 4... c6 {[%clk 0:02:47.1]} 5. Nbd2 {[%clk 0:02:59.1]}
5... Bd6 {[%clk 0:02:44.7]} 6. Bd3 {[%clk 0:02:59.1]} 6... O-O {[%clk
0:02:43.7]} 7. O-O {[%clk 0:02:58.8]} 7... Nbd7 {[%clk 0:02:42.6]} 8. e4 {[%clk
0:02:58.6]} 8... dxe4 {[%clk 0:02:42.7]} 9. Nxe4 {[%clk 0:02:58.9]} 9... Nxe4
{[%clk 0:02:43.3]} 10. Bxe4 {[%clk 0:02:59.2]} 10... Nf6 {[%clk 0:02:44.2]} 11.
Bc2 {[%clk 0:02:58.6]} 11... b6 {[%clk 0:02:44.7]} 12. Bg5 {[%clk 0:02:54.8]}
12... Be7 {[%clk 0:02:44.6]} 13. Qd3 {[%clk 0:02:51.4]} 13... g6 {[%clk
0:02:44.6]} 14. Rad1 {[%clk 0:02:38.9]} 14... Bb7 {[%clk 0:02:44]} 15. Ne5
{[%clk 0:02:32.5]} 15... c5 {[%clk 0:02:40.2]} 16. dxc5 {[%clk 0:02:17.9]} 16...
Qxd3 {[%clk 0:02:34.2]} 17. Bxd3 {[%clk 0:02:16.9]} 17... bxc5 {[%clk
0:02:34.8]} 18. Bxf6 {[%clk 0:02:16]} 18... Bxf6 {[%clk 0:02:33]} 19. Nd7 {[%clk
0:02:16]} 19... Bd4 {[%clk 0:02:27]} 20. Nxf8 {[%clk 0:02:12]} 20... Kxf8 {[%clk
0:02:27.5]} 21. Rfe1 {[%clk 0:02:09.4]} 21... e5 {[%clk 0:02:26.3]} 22. Be4
{[%clk 0:01:59.1]} 22... Bxe4 {[%clk 0:02:26]} 23. Rxe4 {[%clk 0:01:59]} 23...
Bxb2 {[%clk 0:02:24.3]} 24. Rb1 {[%clk 0:01:55.9]} 24... Bd4 {[%clk 0:02:23.1]}
25. Rb7 {[%clk 0:01:55.2]} 25... a5 {[%clk 0:02:18.2]} 26. a4 {[%clk 0:01:53.5]}
26... Kg8 {[%clk 0:02:16.3]} 27. Kf1 {[%clk 0:01:51.7]} 27... h5 {[%clk
0:01:55.7]} 28. Re1 {[%clk 0:01:47.8]} 28... Re8 {[%clk 0:01:48.1]} 29. f3
{[%clk 0:01:45.2]} 29... Re6 {[%clk 0:01:43.4]} 30. Reb1 {[%clk 0:01:42.5]}
30... e4 {[%clk 0:01:34]} 31. Re1 {[%clk 0:01:35]} 31... e3 {[%clk 0:01:31.9]}
32. Ke2 {[%clk 0:01:33.7]} 32... h4 {[%clk 0:01:26.4]} 33. Reb1 {[%clk
0:01:27.9]} 33... Rf6 {[%clk 0:01:26.2]} 34. R1b5 {[%clk 0:01:24.8]} 34... Rf5
{[%clk 0:01:22.1]} 35. Re7 {[%clk 0:00:53.1]} 35... Rg5 {[%clk 0:01:17.7]} 36.
Kf1 {[%clk 0:00:53]} 36... Rf5 {[%clk 0:01:12.6]} 37. h3 {[%clk 0:00:48.2]}
37... Rf6 {[%clk 0:01:07.1]} 38. Ke2 {[%clk 0:00:46.4]} 38... Rf5 {[%clk
0:01:04.6]} 39. Rxa5 {[%clk 0:00:45.4]} 39... Rf6 {[%clk 0:00:59.6]} 40. Rb5
{[%clk 0:00:44.6]} 40... Kg7 {[%clk 0:00:55.4]} 41. a5 {[%clk 0:00:40.8]} 41...
Ra6 {[%clk 0:00:55]} 42. Kd3 {[%clk 0:00:36]} 42... Kf6 {[%clk 0:00:52.7]} 43.
Reb7 {[%clk 0:00:33]} 43... Kg7 {[%clk 0:00:52.1]} 44. R7b6 {[%clk 0:00:32.6]}
44... Ra8 {[%clk 0:00:52.1]} 45. a6 {[%clk 0:00:31.6]} 45... Re8 {[%clk
0:00:51.3]} 46. Ke2 {[%clk 0:00:31.2]} 46... Re5 {[%clk 0:00:49]} 47. a7 {[%clk
0:00:24.3]} 47... Rg5 {[%clk 0:00:49.2]} 48. a8=Q {[%clk 0:00:21.1]} 48... Rxg2+
{[%clk 0:00:48.5]} 49. Kd3 {[%clk 0:00:20.9]} 49... Rd2+ {[%clk 0:00:47.4]} 50.
Ke4 {[%clk 0:00:20.7]} 50... e2 {[%clk 0:00:48]} 51. Rb1 {[%clk 0:00:19.5]}
51... Rd1 {[%clk 0:00:47.6]} 52. Rxd1 {[%clk 0:00:05]} 52... exd1=Q {[%clk
0:00:46.9]} 53. Qd5 {[%clk 0:00:03]} 53... Qe2+ {[%clk 0:00:46.7]} 54. Kf4
{[%clk 0:00:03.2]} 54... Qe3+ {[%clk 0:00:44.7]} 55. Kg4 {[%clk 0:00:02.1]}
55... f5+ {[%clk 0:00:43.8]} 56. Kxh4 {[%clk 0:00:01.9]} 56... Qf2+ {[%clk
0:00:41.9]} 0-1

[Event "Late-Titled-Tuesday-Blitz-April-16-2024"]
[Site "Chess.com"]
[Date "2024.04.16"]
[Round "8"]
[White "Mikhal867"]
[Black "Korchmar_Vasiliy"]
[Result "0-1"]
[WhiteElo "2552"]
[BlackElo "2713"]
[TimeControl "180+1"]
[EndTime "15:25:30 PDT"]
[Termination "Korchmar_Vasiliy won on time"]

1. c4 {[%clk 0:03:00.9]} 1... Nf6 {[%clk 0:02:50.7]} 2. Nc3 {[%clk 0:02:59.2]}
2... c5 {[%clk 0:02:50.5]} 3. g3 {[%clk 0:02:58.4]} 3... Nc6 {[%clk 0:02:47.2]}
4. Bg2 {[%clk 0:02:58.4]} 4... g6 {[%clk 0:02:46.7]} 5. Nf3 {[%clk 0:02:58.2]}
5... Bg7 {[%clk 0:02:46.6]} 6. d4 {[%clk 0:02:58.4]} 6... cxd4 {[%clk
0:02:45.3]} 7. Nxd4 {[%clk 0:02:58.5]} 7... O-O {[%clk 0:02:45.9]} 8. O-O {[%clk
0:02:55.7]} 8... d6 {[%clk 0:02:46.5]} 9. Nxc6 {[%clk 0:02:47]} 9... bxc6 {[%clk
0:02:47.4]} 10. Bxc6 {[%clk 0:02:46.4]} 10... Rb8 {[%clk 0:02:48]} 11. Qd3
{[%clk 0:02:38.6]} 11... Bf5 {[%clk 0:02:41.5]} 12. e4 {[%clk 0:02:33]} 12...
Bh3 {[%clk 0:02:40.1]} 13. Re1 {[%clk 0:02:30]} 13... Ng4 {[%clk 0:02:40.6]} 14.
Ba4 {[%clk 0:02:21.4]} 14... Qa5 {[%clk 0:02:37.6]} 15. Bd1 {[%clk 0:02:15.7]}
15... Ne5 {[%clk 0:02:15.7]} 16. Qd5 {[%clk 0:02:13.9]} 16... Qb4 {[%clk
0:02:04.4]} 17. a3 {[%clk 0:01:55.9]} 17... Qxc4 {[%clk 0:01:59.3]} 18. Qxc4
{[%clk 0:01:54.2]} 18... Nxc4 {[%clk 0:02:00.2]} 19. Nd5 {[%clk 0:01:49.2]}
19... e6 {[%clk 0:01:47.5]} 20. Nf4 {[%clk 0:01:44.9]} 20... Nxb2 {[%clk
0:01:38.2]} 21. Bxb2 {[%clk 0:01:38.1]} 21... Rxb2 {[%clk 0:01:39.1]} 22. Nxh3
{[%clk 0:01:36.4]} 22... Rc8 {[%clk 0:01:24.9]} 23. Nf4 {[%clk 0:01:33.4]} 23...
Bd4 {[%clk 0:01:23.4]} 24. Ne2 {[%clk 0:01:16.7]} 24... Bb6 {[%clk 0:01:23.1]}
25. a4 {[%clk 0:00:54.9]} 25... Ba5 {[%clk 0:01:13.2]} 26. Rf1 {[%clk
0:00:54.5]} 26... Rc4 {[%clk 0:01:13.8]} 27. f3 {[%clk 0:00:46.9]} 27... Kg7
{[%clk 0:01:06.6]} 28. Ra3 {[%clk 0:00:45.7]} 28... f5 {[%clk 0:01:03.2]} 29.
exf5 {[%clk 0:00:45.1]} 29... gxf5 {[%clk 0:01:04.1]} 30. Rb3 {[%clk 0:00:40.9]}
30... Rd2 {[%clk 0:00:59.2]} 31. Rb7+ {[%clk 0:00:38.5]} 31... Kf6 {[%clk
0:00:57.5]} 32. Nf4 {[%clk 0:00:36.7]} 32... Bb6+ {[%clk 0:00:41.4]} 33. Kh1
{[%clk 0:00:36.6]} 33... Rc1 {[%clk 0:00:41.9]} 34. Be2 {[%clk 0:00:37]} 34...
Rcc2 {[%clk 0:00:38.5]} 35. Rd1 {[%clk 0:00:19.4]} 35... Rxd1+ {[%clk
0:00:31.6]} 36. Bxd1 {[%clk 0:00:18.9]} 36... Rc1 {[%clk 0:00:32.5]} 37. Rxh7
{[%clk 0:00:18.4]} 37... Rxd1+ {[%clk 0:00:33.4]} 38. Kg2 {[%clk 0:00:18.6]}
38... Rd4 {[%clk 0:00:21.6]} 39. Rh6+ {[%clk 0:00:17.9]} 39... Kf7 {[%clk
0:00:22.3]} 40. Nxe6 {[%clk 0:00:17.1]} 40... Rxa4 {[%clk 0:00:22.3]} 41. Ng5+
{[%clk 0:00:16.9]} 41... Ke7 {[%clk 0:00:22.7]} 42. Re6+ {[%clk 0:00:16.2]}
42... Kd7 {[%clk 0:00:22.7]} 43. Rf6 {[%clk 0:00:16.1]} 43... a5 {[%clk
0:00:20.1]} 44. h4 {[%clk 0:00:16.2]} 44... Ra2+ {[%clk 0:00:20]} 45. Kh3 {[%clk
0:00:16.1]} 45... a4 {[%clk 0:00:20.5]} 46. h5 {[%clk 0:00:16.1]} 46... Ra1
{[%clk 0:00:20.5]} 47. g4 {[%clk 0:00:11.4]} 47... fxg4+ {[%clk 0:00:19.8]} 48.
fxg4 {[%clk 0:00:11.4]} 48... a3 {[%clk 0:00:20.6]} 49. Ne4 {[%clk 0:00:11.2]}
49... a2 {[%clk 0:00:18.7]} 50. Rxd6+ {[%clk 0:00:10.9]} 50... Kc7 {[%clk
0:00:19.3]} 51. Rd2 {[%clk 0:00:02.3]} 51... Rh1+ {[%clk 0:00:19]} 52. Kg2
{[%clk 0:00:02.1]} 52... Rg1+ {[%clk 0:00:19.6]} 53. Kf3 {[%clk 0:00:01.6]}
53... a1=Q {[%clk 0:00:20.5]} 54. Rc2+ {[%clk 0:00:01.7]} 54... Kb8 {[%clk
0:00:20.7]} 55. Nd6 {[%clk 0:00:01]} 55... Qf1+ {[%clk 0:00:20.6]} 0-1